[Event "Titled Tuesday Blitz May 10 Late 2022"]
[White "Koziorowicz, Michal"]
[Black "Rorrer, Grayson"]
[WhiteFideId "21809194"]
[BlackFideId "30944996"]
[WhiteElo "2219"]
[BlackElo "2122"]
[Result "1-0"]
[Round "10"]
[TimeControl "180+1"]
[Date "2022.05.10"]
[WhiteClock "0:00:16"]
[BlackClock "0:00:05"]

1. Nc3 {[%clk 0:02:59]}  d5 {[%clk 0:02:59]} 2. d4 {[%clk 0:02:59]}  Nf6 {[%clk 0:02:59]} 3. Bg5 {[%clk 0:02:59]}  Nbd7 {[%clk 0:02:57]} 4. Qd3 {[%clk 0:02:58]}  h6 {[%clk 0:02:51]} 5. Bh4 {[%clk 0:02:55]}  c6 {[%clk 0:02:49]} 6. O-O-O {[%clk 0:02:54]}  e5 {[%clk 0:02:44]} 7. dxe5 {[%clk 0:02:40]}  Nxe5 {[%clk 0:02:44]} 8. Qe3 {[%clk 0:02:40]}  Qe7 {[%clk 0:02:39]} 9. Bxf6 {[%clk 0:02:39]}  gxf6 {[%clk 0:02:40]} 10. Nf3 {[%clk 0:02:39]}  Ng4 {[%clk 0:02:35]} 11. Qd4 {[%clk 0:02:31]}  Qc5 {[%clk 0:02:34]} 12. e4 {[%clk 0:01:56]}  Nxf2 {[%clk 0:02:31]} 13. Qxf6 {[%clk 0:01:52]}  Nxd1 {[%clk 0:02:07]} 14. Kxd1 {[%clk 0:01:51]}  Rg8 {[%clk 0:02:04]} 15. exd5 {[%clk 0:01:50]}  Bg7 {[%clk 0:02:00]} 16. Qf4 {[%clk 0:01:39]}  Bxc3 {[%clk 0:01:59]} 17. Qe4+ {[%clk 0:01:36]}  Kf8 {[%clk 0:01:58]} 18. bxc3 {[%clk 0:01:34]}  Qxd5+ {[%clk 0:01:58]} 19. Qxd5 {[%clk 0:01:30]}  cxd5 {[%clk 0:01:59]} 20. Nd4 {[%clk 0:01:31]}  Bd7 {[%clk 0:01:55]} 21. g3 {[%clk 0:01:29]}  Rc8 {[%clk 0:01:54]} 22. Kd2 {[%clk 0:01:29]}  Rg6 {[%clk 0:01:51]} 23. Bg2 {[%clk 0:01:27]}  Bc6 {[%clk 0:01:49]} 24. Rf1 {[%clk 0:01:25]}  Re8 {[%clk 0:01:47]} 25. Rf5 {[%clk 0:01:19]}  Rg5 {[%clk 0:01:46]} 26. Rf4 {[%clk 0:01:18]}  Rge5 {[%clk 0:01:45]} 27. Rf6 {[%clk 0:01:12]}  Kg7 {[%clk 0:01:44]} 28. Rd6 {[%clk 0:01:12]}  h5 {[%clk 0:01:42]} 29. Bf3 {[%clk 0:01:10]}  h4 {[%clk 0:01:27]} 30. gxh4 {[%clk 0:01:11]}  Kh7 {[%clk 0:01:20]} 31. h3 {[%clk 0:01:09]}  Rg8 {[%clk 0:01:19]} 32. Bg4 {[%clk 0:01:08]}  Kh8 {[%clk 0:01:17]} 33. h5 {[%clk 0:01:07]}  Reg5 {[%clk 0:01:08]} 34. Nf3 {[%clk 0:01:03]}  R5g7 {[%clk 0:01:04]} 35. Ne5 {[%clk 0:01:04]}  Re8 {[%clk 0:00:57]} 36. Nf3 {[%clk 0:01:00]}  Re4 {[%clk 0:00:44]} 37. Nd4 {[%clk 0:00:55]}  Rg8 {[%clk 0:00:32]} 38. Rh6+ {[%clk 0:00:43]}  Kg7 {[%clk 0:00:31]} 39. Rd6 {[%clk 0:00:44]}  Rge8 {[%clk 0:00:26]} 40. h6+ {[%clk 0:00:44]}  Kh8 {[%clk 0:00:26]} 41. Bf5 {[%clk 0:00:42]}  Rf4 {[%clk 0:00:25]} 42. Bd3 {[%clk 0:00:40]}  Rf2+ {[%clk 0:00:25]} 43. Kc1 {[%clk 0:00:39]}  Rh2 {[%clk 0:00:20]} 44. Bf5 {[%clk 0:00:38]}  Rh1+ {[%clk 0:00:18]} 45. Kb2 {[%clk 0:00:38]}  Ree1 {[%clk 0:00:19]} 46. Rd8+ {[%clk 0:00:34]}  Be8 {[%clk 0:00:18]} 47. Ne6 {[%clk 0:00:30]}  Rhg1 {[%clk 0:00:05]} 48. Rxe8+ {[%clk 0:00:26]}  Rg8 {[%clk 0:00:06]} 49. Rxg8+ {[%clk 0:00:26]}  Kxg8 {[%clk 0:00:07]} 50. h7+ {[%clk 0:00:27]}  Kh8 {[%clk 0:00:07]} 51. Ng5 {[%clk 0:00:26]}  Re7 {[%clk 0:00:07]} 52. h4 {[%clk 0:00:24]}  f6 {[%clk 0:00:08]} 53. Nf3 {[%clk 0:00:23]}  Re2 {[%clk 0:00:07]} 54. Nd4 {[%clk 0:00:22]}  Rf2 {[%clk 0:00:08]} 55. Kb3 {[%clk 0:00:21]}  Rh2 {[%clk 0:00:07]} 56. Kb4 {[%clk 0:00:20]}  Rxh4 {[%clk 0:00:07]} 57. Kc5 {[%clk 0:00:21]}  Rh2 {[%clk 0:00:06]} 58. Kxd5 {[%clk 0:00:20]}  b6 {[%clk 0:00:07]} 59. Ke6 {[%clk 0:00:20]}  Rh6 {[%clk 0:00:06]} 60. Bd3 {[%clk 0:00:20]}  f5+ {[%clk 0:00:07]} 61. Kxf5 {[%clk 0:00:19]}  Rh1 {[%clk 0:00:05]} 62. Ke5 {[%clk 0:00:18]}  Ra1 {[%clk 0:00:06]} 63. Nc6 {[%clk 0:00:16]}  Rxa2 {[%clk 0:00:04]} 64. Nd8 {[%clk 0:00:17]}  Ra5+ {[%clk 0:00:05]} 65. Kf6 {[%clk 0:00:16]} 1-0


[Site "https://www.chess.com"]

[Event "Titled Tuesday Blitz May 10 Late 2022"]
[White "Ladan, Nicholas"]
[Black "Cilek, Bora"]
[WhiteFideId "30918855"]
[BlackFideId "34502165"]
[WhiteElo "2167"]
[BlackElo "2453"]
[Result "1-0"]
[Round "10"]
[TimeControl "180+1"]
[Date "2022.05.11"]
[WhiteClock "0:00:40"]
[BlackClock "0:00:11"]

1. d4 {[%clk 0:03:00]}  Nf6 {[%clk 0:02:57]} 2. c4 {[%clk 0:03:01]}  e6 {[%clk 0:02:57]} 3. g3 {[%clk 0:03:01]}  d5 {[%clk 0:02:56]} 4. Nf3 {[%clk 0:03:01]}  Be7 {[%clk 0:02:56]} 5. Bg2 {[%clk 0:03:01]}  O-O {[%clk 0:02:56]} 6. O-O {[%clk 0:03:02]}  c6 {[%clk 0:02:56]} 7. Qc2 {[%clk 0:03:01]}  b6 {[%clk 0:02:56]} 8. Rd1 {[%clk 0:03:02]}  Ba6 {[%clk 0:02:54]} 9. b3 {[%clk 0:03:01]}  Nbd7 {[%clk 0:02:51]} 10. a4 {[%clk 0:02:55]}  Rc8 {[%clk 0:02:46]} 11. a5 {[%clk 0:02:51]}  b5 {[%clk 0:02:45]} 12. c5 {[%clk 0:02:49]}  b4 {[%clk 0:02:30]} 13. Bd2 {[%clk 0:02:46]}  Bxe2 {[%clk 0:02:29]} 14. Re1 {[%clk 0:02:43]}  Ba6 {[%clk 0:02:20]} 15. Bxb4 {[%clk 0:02:41]}  Rb8 {[%clk 0:02:20]} 16. Bd2 {[%clk 0:02:34]}  Rb7 {[%clk 0:02:17]} 17. Nc3 {[%clk 0:02:30]}  Qc8 {[%clk 0:02:14]} 18. Bf1 {[%clk 0:02:11]}  Bxf1 {[%clk 0:02:12]} 19. Kxf1 {[%clk 0:02:12]}  a6 {[%clk 0:02:11]} 20. Na4 {[%clk 0:02:10]}  Rb5 {[%clk 0:02:03]} 21. Nb6 {[%clk 0:02:10]}  Qb7 {[%clk 0:01:58]} 22. b4 {[%clk 0:02:09]}  Bd8 {[%clk 0:01:56]} 23. Kg2 {[%clk 0:02:07]}  Bc7 {[%clk 0:01:56]} 24. Ne5 {[%clk 0:02:00]}  Nxe5 {[%clk 0:01:43]} 25. dxe5 {[%clk 0:01:59]}  Ne4 {[%clk 0:01:44]} 26. Rxe4 {[%clk 0:01:48]}  dxe4 {[%clk 0:01:44]} 27. Qxe4 {[%clk 0:01:48]}  Rd8 {[%clk 0:01:39]} 28. Bc3 {[%clk 0:01:48]}  h6 {[%clk 0:01:31]} 29. h4 {[%clk 0:01:47]}  Bb8 {[%clk 0:01:26]} 30. h5 {[%clk 0:01:43]}  Bc7 {[%clk 0:01:18]} 31. Rh1 {[%clk 0:01:41]}  Bxb6 {[%clk 0:01:18]} 32. axb6 {[%clk 0:01:38]}  Qd7 {[%clk 0:01:18]} 33. Ra1 {[%clk 0:01:33]}  Qd3 {[%clk 0:01:17]} 34. Qxd3 {[%clk 0:01:32]}  Rxd3 {[%clk 0:01:18]} 35. Be1 {[%clk 0:01:32]}  Rd5 {[%clk 0:01:11]} 36. f4 {[%clk 0:01:25]}  f6 {[%clk 0:01:09]} 37. exf6 {[%clk 0:01:21]}  gxf6 {[%clk 0:01:10]} 38. Rxa6 {[%clk 0:01:21]}  Rd7 {[%clk 0:01:06]} 39. Ra7 {[%clk 0:01:19]}  Rd8 {[%clk 0:01:04]} 40. Rc7 {[%clk 0:01:14]}  e5 {[%clk 0:00:55]} 41. Rxc6 {[%clk 0:01:10]}  Kf7 {[%clk 0:00:54]} 42. fxe5 {[%clk 0:01:06]}  fxe5 {[%clk 0:00:54]} 43. Rxh6 {[%clk 0:01:05]}  e4 {[%clk 0:00:53]} 44. Kf2 {[%clk 0:01:03]}  Rd1 {[%clk 0:00:53]} 45. Ke2 {[%clk 0:01:02]}  Rb1 {[%clk 0:00:53]} 46. b7 {[%clk 0:00:54]}  Rb2+ {[%clk 0:00:49]} 47. Ke3 {[%clk 0:00:54]}  Rb3+ {[%clk 0:00:49]} 48. Kxe4 {[%clk 0:00:53]}  Rb1 {[%clk 0:00:49]} 49. Rb6 {[%clk 0:00:49]}  Rxe1+ {[%clk 0:00:48]} 50. Kd5 {[%clk 0:00:49]}  Rxb6 {[%clk 0:00:18]} 51. cxb6 {[%clk 0:00:49]}  Re8 {[%clk 0:00:16]} 52. g4 {[%clk 0:00:45]}  Ke7 {[%clk 0:00:13]} 53. Kc6 {[%clk 0:00:42]}  Rg8 {[%clk 0:00:11]} 54. Kc7 {[%clk 0:00:40]} 1-0


[Site "https://www.chess.com"]

[Event "Titled Tuesday Blitz May 10 Late 2022"]
[White "Lashkin, Jegor"]
[Black "Barria Zuniga, Daniel"]
[WhiteFideId "13907808"]
[BlackFideId "3400816"]
[WhiteElo "2368"]
[BlackElo "2414"]
[Result "0-1"]
[Round "10"]
[TimeControl "180+1"]
[Date "2022.05.10"]
[WhiteClock "0:00:01"]
[BlackClock "0:00:08"]

1. Nf3 {[%clk 0:03:00]}  d5 {[%clk 0:02:56]} 2. b3 {[%clk 0:03:01]}  Bg4 {[%clk 0:02:55]} 3. Bb2 {[%clk 0:03:00]}  Bxf3 {[%clk 0:02:55]} 4. exf3 {[%clk 0:03:00]}  e6 {[%clk 0:02:56]} 5. f4 {[%clk 0:03:00]}  Nf6 {[%clk 0:02:56]} 6. g3 {[%clk 0:03:01]}  g6 {[%clk 0:02:57]} 7. Bg2 {[%clk 0:03:01]}  Bg7 {[%clk 0:02:58]} 8. O-O {[%clk 0:03:02]}  O-O {[%clk 0:02:58]} 9. d3 {[%clk 0:03:02]}  c5 {[%clk 0:02:59]} 10. Nd2 {[%clk 0:03:02]}  Nc6 {[%clk 0:02:59]} 11. Nf3 {[%clk 0:03:02]}  Nd7 {[%clk 0:03:00]} 12. Bxg7 {[%clk 0:03:02]}  Kxg7 {[%clk 0:03:01]} 13. c3 {[%clk 0:03:01]}  Qf6 {[%clk 0:03:00]} 14. Qd2 {[%clk 0:03:01]}  b5 {[%clk 0:03:00]} 15. d4 {[%clk 0:03:01]}  b4 {[%clk 0:02:59]} 16. cxb4 {[%clk 0:02:47]}  cxb4 {[%clk 0:02:41]} 17. Rac1 {[%clk 0:02:47]}  Rfc8 {[%clk 0:02:41]} 18. Rc2 {[%clk 0:02:47]}  Rc7 {[%clk 0:02:37]} 19. Rfc1 {[%clk 0:02:48]}  Rac8 {[%clk 0:02:37]} 20. Bf1 {[%clk 0:02:48]}  Ndb8 {[%clk 0:02:23]} 21. Bb5 {[%clk 0:02:47]}  Qe7 {[%clk 0:02:18]} 22. Rc5 {[%clk 0:02:46]}  a5 {[%clk 0:02:16]} 23. R1c2 {[%clk 0:02:44]}  Na7 {[%clk 0:02:14]} 24. Be2 {[%clk 0:02:39]}  Rxc5 {[%clk 0:02:13]} 25. dxc5 {[%clk 0:02:39]}  Nbc6 {[%clk 0:02:07]} 26. h4 {[%clk 0:02:38]}  Kg8 {[%clk 0:01:58]} 27. h5 {[%clk 0:02:38]}  f6 {[%clk 0:01:54]} 28. hxg6 {[%clk 0:02:37]}  hxg6 {[%clk 0:01:54]} 29. Bd3 {[%clk 0:02:37]}  Kg7 {[%clk 0:01:54]} 30. Nh4 {[%clk 0:02:37]}  f5 {[%clk 0:01:53]} 31. Nf3 {[%clk 0:02:36]}  Qf6 {[%clk 0:01:51]} 32. Kg2 {[%clk 0:02:34]}  Rc7 {[%clk 0:01:49]} 33. Qe3 {[%clk 0:02:34]}  Nc8 {[%clk 0:01:45]} 34. Bb5 {[%clk 0:02:33]}  N8e7 {[%clk 0:01:39]} 35. Re2 {[%clk 0:02:33]}  Nd8 {[%clk 0:01:37]} 36. Ne5 {[%clk 0:02:33]}  Nec6 {[%clk 0:01:27]} 37. Nf3 {[%clk 0:02:33]}  Ne7 {[%clk 0:01:21]} 38. Re1 {[%clk 0:02:32]}  Qc3 {[%clk 0:01:11]} 39. Qe2 {[%clk 0:02:22]}  Rxc5 {[%clk 0:01:07]} 40. Bd7 {[%clk 0:02:20]}  Qf6 {[%clk 0:01:01]} 41. Ng5 {[%clk 0:02:20]}  e5 {[%clk 0:00:52]} 42. Rh1 {[%clk 0:01:39]}  e4 {[%clk 0:00:42]} 43. Rh7+ {[%clk 0:01:06]}  Kg8 {[%clk 0:00:42]} 44. Qd1 {[%clk 0:01:00]}  d4 {[%clk 0:00:39]} 45. Qh1 {[%clk 0:00:50]}  d3 {[%clk 0:00:33]} 46. Be8 {[%clk 0:00:45]}  e3 {[%clk 0:00:25]} 47. Bf7+ {[%clk 0:00:29]}  Nxf7 {[%clk 0:00:25]} 48. Rxf7 {[%clk 0:00:24]}  Qxf7 {[%clk 0:00:25]} 49. Nxf7 {[%clk 0:00:25]}  Kxf7 {[%clk 0:00:26]} 50. fxe3 {[%clk 0:00:19]}  d2 {[%clk 0:00:19]} 51. Qd1 {[%clk 0:00:18]}  Rd5 {[%clk 0:00:19]} 52. Kf3 {[%clk 0:00:17]}  Ng8 {[%clk 0:00:17]} 53. e4 {[%clk 0:00:17]}  Rd3+ {[%clk 0:00:16]} 54. Ke2 {[%clk 0:00:16]}  fxe4 {[%clk 0:00:17]} 55. Kf2 {[%clk 0:00:10]}  Nf6 {[%clk 0:00:16]} 56. f5 {[%clk 0:00:06]}  gxf5 {[%clk 0:00:15]} 57. Kg2 {[%clk 0:00:06]}  Ke6 {[%clk 0:00:13]} 58. Kh3 {[%clk 0:00:05]}  f4 {[%clk 0:00:11]} 59. Kh4 {[%clk 0:00:05]}  fxg3 {[%clk 0:00:11]} 60. Kg5 {[%clk 0:00:02]}  g2 {[%clk 0:00:10]} 61. Kf4 {[%clk 0:00:01]}  Rf3+ {[%clk 0:00:10]} 62. Kg5 {[%clk 0:00:01]}  Rg3+ {[%clk 0:00:09]} 63. Kf4 {[%clk 0:00:01]}  g1=Q {[%clk 0:00:10]} 64. Qxd2 {[%clk 0:00:01]}  Rf3# {[%clk 0:00:08]} 0-1


[Site "https://www.chess.com"]

[Event "Titled Tuesday Blitz May 10 Late 2022"]
[White "Leiva, Gianmarco"]
[Black "Karttunen, Mika"]
[WhiteFideId "3804399"]
[BlackFideId "502081"]
[WhiteElo "2323"]
[BlackElo "2343"]
[Result "0-1"]
[Round "10"]
[TimeControl "180+1"]
[Date "2022.05.10"]
[WhiteClock "0:00:12"]
[BlackClock "0:00:06"]

1. e4 {[%clk 0:03:00]}  c5 {[%clk 0:02:59]} 2. Nf3 {[%clk 0:03:01]}  d6 {[%clk 0:02:59]} 3. d4 {[%clk 0:03:01]}  cxd4 {[%clk 0:02:59]} 4. Nxd4 {[%clk 0:03:02]}  Nf6 {[%clk 0:02:59]} 5. Nc3 {[%clk 0:03:03]}  a6 {[%clk 0:03:00]} 6. Bg5 {[%clk 0:03:00]}  e6 {[%clk 0:02:59]} 7. Qf3 {[%clk 0:02:56]}  Nbd7 {[%clk 0:02:45]} 8. O-O-O {[%clk 0:02:50]}  Qc7 {[%clk 0:02:44]} 9. Qg3 {[%clk 0:02:46]}  b5 {[%clk 0:02:29]} 10. Bxb5 {[%clk 0:01:58]}  axb5 {[%clk 0:02:29]} 11. Ndxb5 {[%clk 0:01:58]}  Qb8 {[%clk 0:01:46]} 12. Nxd6+ {[%clk 0:01:43]}  Bxd6 {[%clk 0:01:46]} 13. Qxd6 {[%clk 0:01:44]}  Qxd6 {[%clk 0:01:40]} 14. Rxd6 {[%clk 0:01:44]}  h6 {[%clk 0:01:29]} 15. Bxf6 {[%clk 0:01:23]}  gxf6 {[%clk 0:01:18]} 16. f3 {[%clk 0:00:42]}  Ke7 {[%clk 0:01:18]} 17. Rhd1 {[%clk 0:00:36]}  Rd8 {[%clk 0:00:54]} 18. b3 {[%clk 0:00:33]}  Bb7 {[%clk 0:00:52]} 19. a4 {[%clk 0:00:32]}  Nc5 {[%clk 0:00:40]} 20. Rxd8 {[%clk 0:00:28]}  Rxd8 {[%clk 0:00:40]} 21. Rxd8 {[%clk 0:00:28]}  Kxd8 {[%clk 0:00:41]} 22. Kb2 {[%clk 0:00:29]}  e5 {[%clk 0:00:33]} 23. b4 {[%clk 0:00:27]}  Ne6 {[%clk 0:00:33]} 24. Nd1 {[%clk 0:00:19]}  f5 {[%clk 0:00:32]} 25. exf5 {[%clk 0:00:18]}  Nd4 {[%clk 0:00:31]} 26. Ne3 {[%clk 0:00:19]}  e4 {[%clk 0:00:31]} 27. f4 {[%clk 0:00:14]}  h5 {[%clk 0:00:28]} 28. c4 {[%clk 0:00:12]}  Bc8 {[%clk 0:00:27]} 29. a5 {[%clk 0:00:08]}  Nxf5 {[%clk 0:00:26]} 30. Nxf5 {[%clk 0:00:06]}  Bxf5 {[%clk 0:00:27]} 31. Kc3 {[%clk 0:00:03]}  e3 {[%clk 0:00:26]} 32. b5 {[%clk 0:00:02]}  Kc7 {[%clk 0:00:13]} 33. c5 {[%clk 0:00:02]}  Kb7 {[%clk 0:00:10]} 34. a6+ {[%clk 0:00:01]}  Ka7 {[%clk 0:00:10]} 35. g3 {[%clk 0:00:01]}  f6 {[%clk 0:00:08]} 36. h3 {[%clk 0:00:02]}  Be4 {[%clk 0:00:07]} 37. g4 {[%clk 0:00:01]}  hxg4 {[%clk 0:00:07]} 38. hxg4 {[%clk 0:00:02]}  Bb1 {[%clk 0:00:06]} 39. f5 {[%clk 0:00:02]}  Be4 {[%clk 0:00:05]} 40. g5 {[%clk 0:00:02]}  fxg5 {[%clk 0:00:06]} 41. f6 {[%clk 0:00:02]}  Bg6 {[%clk 0:00:06]} 42. c6 {[%clk 0:00:02]}  Kb6 {[%clk 0:00:05]} 43. c7 {[%clk 0:00:01]}  Kxc7 {[%clk 0:00:06]} 44. a7 {[%clk 0:00:02]}  Kb7 {[%clk 0:00:06]} 45. b6 {[%clk 0:00:03]}  g4 {[%clk 0:00:06]} 46. Kd4 {[%clk 0:00:02]}  e2 {[%clk 0:00:06]} 47. Kc5 {[%clk 0:00:03]}  e1=Q {[%clk 0:00:06]} 48. Kd6 {[%clk 0:00:04]}  Qd2+ {[%clk 0:00:05]} 49. Ke7 {[%clk 0:00:04]}  Qe3+ {[%clk 0:00:05]} 50. Kf8 {[%clk 0:00:05]}  Qe6 {[%clk 0:00:05]} 51. a8=Q+ {[%clk 0:00:06]}  Kxa8 {[%clk 0:00:05]} 52. b7+ {[%clk 0:00:07]}  Kxb7 {[%clk 0:00:06]} 53. Kg7 {[%clk 0:00:07]}  Qf7+ {[%clk 0:00:06]} 54. Kh6 {[%clk 0:00:08]}  g3 {[%clk 0:00:06]} 55. Kg5 {[%clk 0:00:09]}  g2 {[%clk 0:00:07]} 56. Kh6 {[%clk 0:00:09]}  Bc2 {[%clk 0:00:06]} 57. Kg5 {[%clk 0:00:10]}  g1=Q+ {[%clk 0:00:06]} 58. Kf4 {[%clk 0:00:11]}  Qf1+ {[%clk 0:00:05]} 59. Ke3 {[%clk 0:00:11]}  Qe6+ {[%clk 0:00:05]} 60. Kd2 {[%clk 0:00:12]}  Qd3+ {[%clk 0:00:05]} 61. Kc1 {[%clk 0:00:12]}  Qd1+ {[%clk 0:00:06]} 62. Kb2 {[%clk 0:00:12]}  Qb3# {[%clk 0:00:06]} 0-1


[Site "https://www.chess.com"]

[Event "Titled Tuesday Blitz May 10 Late 2022"]
[White "Melikhov, Evgeny V."]
[Black "Prieto Aranguren, Alain"]
[WhiteFideId "4122046"]
[BlackFideId "2268906"]
[WhiteElo "1931"]
[BlackElo "2235"]
[Result "1-0"]
[Round "10"]
[TimeControl "180+1"]
[Date "2022.05.11"]
[WhiteClock "0:01:24"]
[BlackClock "0:00:43"]

1. d4 {[%clk 0:03:00]}  d5 {[%clk 0:02:59]} 2. c4 {[%clk 0:03:00]}  c6 {[%clk 0:02:58]} 3. Nc3 {[%clk 0:03:00]}  Nf6 {[%clk 0:02:58]} 4. e3 {[%clk 0:03:01]}  h5 {[%clk 0:02:56]} 5. Nf3 {[%clk 0:03:00]}  h4 {[%clk 0:02:55]} 6. h3 {[%clk 0:02:58]}  e6 {[%clk 0:02:52]} 7. Bd3 {[%clk 0:02:57]}  Rh5 {[%clk 0:02:50]} 8. O-O {[%clk 0:02:55]}  dxc4 {[%clk 0:02:50]} 9. Bxc4 {[%clk 0:02:55]}  b5 {[%clk 0:02:50]} 10. Bd3 {[%clk 0:02:54]}  Bb7 {[%clk 0:02:50]} 11. e4 {[%clk 0:02:53]}  Be7 {[%clk 0:02:48]} 12. e5 {[%clk 0:02:47]}  Nd5 {[%clk 0:02:47]} 13. Ne4 {[%clk 0:02:47]}  Na6 {[%clk 0:02:37]} 14. a3 {[%clk 0:02:36]}  Qb6 {[%clk 0:02:36]} 15. Bg5 {[%clk 0:02:26]}  Nac7 {[%clk 0:02:28]} 16. Bxe7 {[%clk 0:02:25]}  Nxe7 {[%clk 0:02:28]} 17. Nd6+ {[%clk 0:02:25]}  Kf8 {[%clk 0:02:23]} 18. Nd2 {[%clk 0:02:11]}  Rg5 {[%clk 0:02:18]} 19. N2e4 {[%clk 0:02:11]}  Rg6 {[%clk 0:02:14]} 20. Nc5 {[%clk 0:02:10]}  Rd8 {[%clk 0:02:03]} 21. Bxg6 {[%clk 0:02:03]}  Nxg6 {[%clk 0:02:03]} 22. Ncxb7 {[%clk 0:02:02]}  Rd7 {[%clk 0:02:02]} 23. Nc5 {[%clk 0:02:01]}  Rd8 {[%clk 0:02:00]} 24. Qg4 {[%clk 0:01:53]}  b4 {[%clk 0:01:54]} 25. axb4 {[%clk 0:01:50]}  Qxb4 {[%clk 0:01:53]} 26. Rxa7 {[%clk 0:01:47]}  Qb6 {[%clk 0:01:42]} 27. Rxc7 {[%clk 0:01:45]}  Qxc7 {[%clk 0:01:42]} 28. Qxg6 {[%clk 0:01:44]}  Rb8 {[%clk 0:01:03]} 29. Qxe6 {[%clk 0:01:37]}  Qe7 {[%clk 0:00:58]} 30. Qxe7+ {[%clk 0:01:36]}  Kxe7 {[%clk 0:00:57]} 31. b3 {[%clk 0:01:36]}  Rb4 {[%clk 0:00:54]} 32. Rd1 {[%clk 0:01:33]}  g5 {[%clk 0:00:52]} 33. f3 {[%clk 0:01:31]}  f6 {[%clk 0:00:50]} 34. Nde4 {[%clk 0:01:26]}  fxe5 {[%clk 0:00:47]} 35. dxe5 {[%clk 0:01:27]}  g4 {[%clk 0:00:46]} 36. Rd7+ {[%clk 0:01:25]}  Ke8 {[%clk 0:00:45]} 37. Nf6+ {[%clk 0:01:25]}  Kf8 {[%clk 0:00:45]} 38. e6 {[%clk 0:01:25]}  gxh3 {[%clk 0:00:43]} 39. Rf7# {[%clk 0:01:24]} 1-0


[Site "https://www.chess.com"]

[Event "Titled Tuesday Blitz May 10 Late 2022"]
[White "Melkumyan, Hrant"]
[Black "Holt, Conrad"]
[WhiteFideId "13302485"]
[BlackFideId "2034387"]
[WhiteElo "2604"]
[BlackElo "2586"]
[Result "1-0"]
[Round "10"]
[TimeControl "180+1"]
[Date "2022.05.10"]
[WhiteClock "0:00:54"]
[BlackClock "0:00:08"]

1. c4 {[%clk 0:03:00]}  c6 {[%clk 0:02:59]} 2. Nf3 {[%clk 0:02:59]}  d5 {[%clk 0:02:59]} 3. e3 {[%clk 0:02:59]}  Nf6 {[%clk 0:02:59]} 4. Nc3 {[%clk 0:02:59]}  Nbd7 {[%clk 0:02:55]} 5. d4 {[%clk 0:02:57]}  e6 {[%clk 0:02:54]} 6. Be2 {[%clk 0:02:57]}  b6 {[%clk 0:02:50]} 7. O-O {[%clk 0:02:57]}  Bb7 {[%clk 0:02:50]} 8. b3 {[%clk 0:02:57]}  Bd6 {[%clk 0:02:48]} 9. Bb2 {[%clk 0:02:57]}  O-O {[%clk 0:02:48]} 10. Qc2 {[%clk 0:02:50]}  Qe7 {[%clk 0:02:38]} 11. Rad1 {[%clk 0:02:49]}  dxc4 {[%clk 0:02:32]} 12. bxc4 {[%clk 0:02:47]}  e5 {[%clk 0:02:32]} 13. Rfe1 {[%clk 0:02:46]}  Rfe8 {[%clk 0:02:29]} 14. h3 {[%clk 0:02:39]}  e4 {[%clk 0:02:00]} 15. Nd2 {[%clk 0:02:38]}  c5 {[%clk 0:01:59]} 16. d5 {[%clk 0:02:35]}  Qe5 {[%clk 0:01:55]} 17. Nf1 {[%clk 0:02:34]}  Qg5 {[%clk 0:01:53]} 18. Nb5 {[%clk 0:02:34]}  Be5 {[%clk 0:01:49]} 19. d6 {[%clk 0:02:24]}  Bxb2 {[%clk 0:01:42]} 20. Qxb2 {[%clk 0:02:20]}  Re5 {[%clk 0:01:42]} 21. a4 {[%clk 0:02:07]}  a5 {[%clk 0:01:38]} 22. Rb1 {[%clk 0:02:02]}  Bc6 {[%clk 0:01:37]} 23. Red1 {[%clk 0:02:01]}  h5 {[%clk 0:01:35]} 24. Ng3 {[%clk 0:01:45]}  Rb8 {[%clk 0:01:28]} 25. Bf1 {[%clk 0:01:44]}  h4 {[%clk 0:01:20]} 26. Ne2 {[%clk 0:01:44]}  Nf8 {[%clk 0:01:20]} 27. Nf4 {[%clk 0:01:43]}  Bd7 {[%clk 0:01:15]} 28. Nc3 {[%clk 0:01:38]}  Ne6 {[%clk 0:01:02]} 29. Qd2 {[%clk 0:01:37]}  Rf5 {[%clk 0:01:00]} 30. Nfd5 {[%clk 0:01:33]}  Nxd5 {[%clk 0:00:56]} 31. Nxd5 {[%clk 0:01:33]}  Re5 {[%clk 0:00:55]} 32. Rxb6 {[%clk 0:01:29]}  Rd8 {[%clk 0:00:49]} 33. Qxa5 {[%clk 0:01:28]}  Nf8 {[%clk 0:00:40]} 34. Kh1 {[%clk 0:01:15]}  Kh7 {[%clk 0:00:32]} 35. Rb7 {[%clk 0:01:15]}  Be6 {[%clk 0:00:13]} 36. Nf4 {[%clk 0:01:11]}  Ng6 {[%clk 0:00:11]} 37. Nxe6 {[%clk 0:01:08]}  Rxe6 {[%clk 0:00:11]} 38. Qc7 {[%clk 0:00:58]}  Ne5 {[%clk 0:00:10]} 39. Rd5 {[%clk 0:00:55]}  Rd7 {[%clk 0:00:09]} 40. Qxd7 {[%clk 0:00:54]}  Nxd7 {[%clk 0:00:08]} 41. Rxg5 {[%clk 0:00:54]} 1-0


[Site "https://www.chess.com"]

[Event "Titled Tuesday Blitz May 10 Late 2022"]
[White "Nozdrachev, Leonid"]
[Black "Vlassov, Nikolai"]
[WhiteFideId "24113433"]
[BlackFideId "4103360"]
[WhiteElo "2255"]
[BlackElo "2407"]
[Result "0-1"]
[Round "10"]
[TimeControl "180+1"]
[Date "2022.05.11"]
[WhiteClock "0:00:01"]
[BlackClock "0:00:18"]

1. e4 {[%clk 0:02:59]}  Nc6 {[%clk 0:02:59]} 2. d4 {[%clk 0:02:56]}  d5 {[%clk 0:02:58]} 3. Nc3 {[%clk 0:02:49]}  Nf6 {[%clk 0:02:56]} 4. e5 {[%clk 0:02:44]}  Nd7 {[%clk 0:02:56]} 5. Nxd5 {[%clk 0:02:42]}  Ndb8 {[%clk 0:02:56]} 6. Bc4 {[%clk 0:02:24]}  Na5 {[%clk 0:02:33]} 7. Ne3 {[%clk 0:02:06]}  Nxc4 {[%clk 0:02:26]} 8. Nxc4 {[%clk 0:02:07]}  b5 {[%clk 0:02:14]} 9. Qf3 {[%clk 0:01:56]}  c6 {[%clk 0:02:07]} 10. Na3 {[%clk 0:01:54]}  Qxd4 {[%clk 0:02:04]} 11. Ne2 {[%clk 0:01:54]}  Qxe5 {[%clk 0:02:03]} 12. O-O {[%clk 0:01:46]}  h5 {[%clk 0:01:54]} 13. Bf4 {[%clk 0:01:37]}  Qxb2 {[%clk 0:01:53]} 14. Rab1 {[%clk 0:01:34]}  Qf6 {[%clk 0:01:37]} 15. Nxb5 {[%clk 0:01:32]}  Na6 {[%clk 0:01:37]} 16. h3 {[%clk 0:01:07]}  e5 {[%clk 0:01:35]} 17. Qe3 {[%clk 0:00:45]}  Bc5 {[%clk 0:01:28]} 18. Nbd4 {[%clk 0:00:32]}  Bxd4 {[%clk 0:01:17]} 19. Nxd4 {[%clk 0:00:30]}  Qxf4 {[%clk 0:01:17]} 20. Nxc6 {[%clk 0:00:27]}  Qxe3 {[%clk 0:01:14]} 21. fxe3 {[%clk 0:00:28]}  f6 {[%clk 0:01:06]} 22. Na5 {[%clk 0:00:14]}  Nc5 {[%clk 0:00:56]} 23. Nc4 {[%clk 0:00:13]}  Ke7 {[%clk 0:00:51]} 24. Rb5 {[%clk 0:00:10]}  Ne4 {[%clk 0:00:44]} 25. Ra5 {[%clk 0:00:10]}  a6 {[%clk 0:00:35]} 26. Nxe5 {[%clk 0:00:10]}  fxe5 {[%clk 0:00:31]} 27. Rxe5+ {[%clk 0:00:11]}  Be6 {[%clk 0:00:31]} 28. Rxe4 {[%clk 0:00:10]}  Rhc8 {[%clk 0:00:31]} 29. Rf5 {[%clk 0:00:08]}  Rxc2 {[%clk 0:00:26]} 30. Rfe5 {[%clk 0:00:08]}  Rc6 {[%clk 0:00:25]} 31. Rxh5 {[%clk 0:00:08]}  Rb8 {[%clk 0:00:23]} 32. Ra5 {[%clk 0:00:08]}  Rb2 {[%clk 0:00:21]} 33. Kh2 {[%clk 0:00:06]}  Kf6 {[%clk 0:00:20]} 34. Rf4+ {[%clk 0:00:05]}  Kg6 {[%clk 0:00:18]} 35. Rf3 {[%clk 0:00:05]}  Rxa2 {[%clk 0:00:17]} 36. Rg3+ {[%clk 0:00:04]}  Kf6 {[%clk 0:00:18]} 37. Rag5 {[%clk 0:00:03]}  Rc7 {[%clk 0:00:17]} 38. Rg6+ {[%clk 0:00:03]}  Ke5 {[%clk 0:00:17]} 39. Rxg7 {[%clk 0:00:02]}  Rxg7 {[%clk 0:00:16]} 40. Rxg7 {[%clk 0:00:03]}  a5 {[%clk 0:00:17]} 41. Rb7 {[%clk 0:00:02]}  a4 {[%clk 0:00:17]} 42. Rb5+ {[%clk 0:00:01]}  Kf6 {[%clk 0:00:17]} 43. Ra5 {[%clk 0:00:01]}  a3 {[%clk 0:00:17]} 44. Kg3 {[%clk 0:00:01]}  Ra1 {[%clk 0:00:17]} 45. Kf4 {[%clk 0:00:01]}  a2 {[%clk 0:00:18]} 0-1


[Site "https://www.chess.com"]